bitfinex/quotes_ETHUSD_20250507
["timestamp","ask_amount","ask_price","bid_price","bid_amount"]
[1746652761710,0.25541439,1804.2,1804.0,1.02775821]
[1746652761919,0.25541439,1804.2,1804.0,1.33689323]
[1746652762121,0.25541439,1804.2,1804.1,0.51412276]
[1746652762621,0.25541439,1804.2,1804.1,1.02775821]
[1746652762821,0.25541439,1804.2,1804.1,1.33689323]
[1746652763593,5.79803715,1804.2,1804.1,1.33689323]
[1746652764023,5.79803715,1804.2,1804.1,1.02775821]
[1746652765017,0.25541439,1804.2,1804.1,1.02775821]
[1746652765789,0.25541439,1804.2,1804.1,1.33689323]
[1746652766225,5.79803715,1804.2,1804.1,1.33689323]
[1746652766532,5.79803715,1804.2,1804.1,1.02775821]
[1746652767604,5.97123715,1804.2,1804.1,1.02775821]
[1746652768307,5.97123715,1804.2,1804.1,1.33689323]
[1746652769234,5.97123715,1804.2,1804.1,1.02775821]
[1746652771129,5.97123715,1804.2,1804.1,1.33689323]
[1746652771330,0.42861439,1804.2,1804.1,1.33689323]
[1746652771534,0.25541439,1804.2,1804.1,1.33689323]
[1746652774421,0.25541439,1804.2,1804.1,8.53648524]
[1746652774623,5.54156209,1804.6,1804.2,5.54256697]
[1746652774822,0.25757611,1804.5,1804.2,5.54256697]
[1746652775130,0.25757611,1804.5,1804.3,0.51412276]
[1746652775437,5.79927741,1804.5,1804.4,0.51363545]
[1746652775800,5.79927741,1804.5,1804.4,0.82277047]
[1746652775999,5.79927741,1804.5,1804.4,1.33689323]
[1746652776525,5.79927741,1804.5,1804.4,1.02775821]
[1746652783448,5.79927741,1804.5,1804.4,0.51412276]
[1746652784136,5.79927741,1804.5,1804.4,1.02775821]
[1746652784583,5.79927741,1804.5,1804.4,0.51412276]
[1746652785876,5.79927741,1804.5,1804.4,1.02775821]
[1746652787378,5.79927741,1804.5,1804.4,0.51412276]
[1746652787672,11.34126581,1804.5,1804.3,1.02775821]
[1746652788093,5.79927741,1804.5,1804.4,0.51412276]
[1746652788561,5.79927741,1804.5,1804.4,1.02688265]
[1746652789381,5.79927741,1804.5,1804.4,0.5132472]
[1746652789586,0.25757611,1804.5,1804.4,0.5132472]
[1746652790078,5.80393977,1804.5,1804.4,0.5132472]
[1746652790230,5.80393977,1804.5,1804.4,0.82238222]
[1746652790870,5.80393977,1804.5,1804.4,1.02688265]
[1746652790871,9.69892435,1804.5,1804.4,1.02688265]
[1746652791041,19.88892435,1804.5,1804.4,1.02688265]
[1746652791246,19.88892435,1804.5,1804.4,0.51363545]
[1746652792372,5.54231557,1804.3,1804.2,0.5132472]
[1746652792581,5.71551557,1804.3,1804.2,0.5132472]
[1746652792789,5.54262276,1804.2,1804.1,0.51363545]
[1746652793372,5.80507312,1804.2,1804.1,1.02688265]
[1746652793876,5.80507312,1804.2,1804.1,0.51363545]
[1746652794538,5.80507312,1804.2,1804.1,1.02688265]
[1746652795374,5.80507312,1804.2,1804.1,0.5132472]
[1746652796593,5.80507312,1804.2,1804.1,1.02688265]
[1746652798099,5.80507312,1804.2,1804.1,0.5132472]
[1746652799614,5.80507312,1804.2,1804.1,1.02688265]
[1746652799968,6.95713199,1804.2,1804.1,1.02688265]
[1746652800474,5.54292999,1804.1,1804.0,1.02688265]
[1746652800676,5.80064744,1804.1,1804.0,1.02688265]
[1746652803915,0.25771745,1804.1,1804.0,1.02688265]
[1746652804208,5.54292999,1804.1,1804.0,1.02688265]
[1746652804379,5.80015285,1804.1,1804.0,1.02688265]
[1746652804574,0.25722286,1804.1,1804.0,1.02688265]
[1746652804793,5.80015285,1804.1,1804.0,1.02688265]
[1746652808217,0.25722286,1804.1,1804.0,1.02688265]
[1746652808583,11.08551691,1804.2,1804.0,1.02688265]
[1746652808915,5.80015285,1804.1,1804.0,0.51363545]
[1746652809418,5.80015285,1804.1,1804.0,1.02795383]
[1746652809787,0.25722286,1804.1,1804.0,1.80995383]
[1746652809987,5.80015285,1804.1,1804.0,1.80995383]
[1746652810186,5.54292999,1804.1,1804.0,1.80995383]
[1746652810386,5.80015285,1804.1,1804.0,1.80995383]
[1746652812233,0.25722286,1804.1,1804.0,1.80995383]
[1746652812611,5.54262276,1804.2,1804.0,2.57620554]
[1746652812932,0.25722286,1804.1,1804.0,2.88534056]
[1746652813133,5.54262276,1804.2,1804.0,2.88534056]
[1746652813436,0.25722286,1804.1,1804.0,1.54825171]
[1746652813735,5.54262276,1804.2,1804.0,1.54825171]
[1746652813935,0.25686952,1804.1,1804.0,1.54825171]
[1746652814137,5.54262276,1804.2,1804.0,2.0625194]
[1746652814446,0.25686952,1804.1,1804.0,2.0625194]
[1746652814741,5.54262276,1804.2,1804.0,2.0625194]
[1746652814942,0.25686952,1804.1,1804.0,2.88551382]
[1746652815237,5.54245474,1804.3,1804.0,2.88551382]
[1746652815442,0.25743477,1804.1,1804.0,2.57689372]
[1746652815606,5.54245474,1804.3,1804.1,1.02864201]
[1746652815808,5.54262276,1804.2,1804.1,1.02864201]
[1746652816337,5.54245474,1804.3,1804.1,1.02864201]
[1746652817016,5.54245474,1804.3,1804.2,0.30866697]
[1746652817328,5.54245474,1804.3,1804.2,0.82304129]
[1746652818037,5.54245474,1804.3,1804.2,1.33730898]
[1746652818539,5.54245474,1804.3,1804.2,1.02864201]
[1746652819230,5.54245474,1804.3,1804.2,1.33730898]
[1746652819947,5.54245474,1804.3,1804.2,1.02864201]
[1746652821046,5.54245474,1804.3,1804.2,1.33730898]
[1746652821956,5.54214821,1804.4,1804.2,2.13240898]
[1746652822251,5.54231557,1804.3,1804.2,2.13240898]
[1746652822748,5.54214821,1804.4,1804.2,1.61803466]
[1746652822943,5.54214821,1804.4,1804.2,2.13301291]
[1746652823151,5.54214821,1804.4,1804.3,0.51426769]
[1746652823537,5.54214821,1804.4,1804.3,1.02924594]
[1746652823718,5.54214821,1804.4,1804.3,1.33791291]
[1746652828785,5.54214821,1804.4,1804.3,1.02924594]
[1746652830581,5.80092541,1804.4,1804.3,1.02924594]
[1746652830949,5.80092541,1804.4,1804.3,1.33791291]
[1746652831479,5.80092541,1804.4,1804.3,1.02924594]
[1746652831678,5.94391985,1804.4,1804.3,1.02924594]
[1746652833186,5.94391985,1804.4,1804.3,1.33791291]
[1746652834063,5.94391985,1804.4,1804.3,1.02924594]
[1746652834687,5.94391985,1804.4,1804.3,1.33791291]
[1746652835688,5.94391985,1804.4,1804.3,1.02924594]
[1746652836290,5.94391985,1804.4,1804.3,1.33791291]
[1746652837164,5.94391985,1804.4,1804.3,1.02924594]
[1746652837794,5.94391985,1804.4,1804.3,1.33791291]
[1746652838994,5.94391985,1804.4,1804.3,1.02924594]
[1746652839703,5.94391985,1804.4,1804.3,1.33791291]
[1746652840875,5.94378006,1804.4,1804.3,1.33730788]
[1746652844007,0.40177164,1804.4,1804.3,1.33730788]
[1746652845009,5.54139989,1804.6,1804.3,2.85828945]
[1746652845225,0.40297257,1804.4,1804.3,2.85828945]
[1746652845392,5.54139989,1804.6,1804.3,2.85828945]
[1746652845715,5.54139989,1804.6,1804.4,0.51426769]
[1746652845917,0.40297257,1804.5,1804.4,0.51426769]
[1746652846227,0.40297257,1804.5,1804.4,7.90082439]
[1746652846431,0.40297257,1804.5,1804.4,7.81276749]
[1746652846583,5.54126256,1804.7,1804.4,7.81276749]
[1746652846784,0.40297257,1804.5,1804.4,7.29845671]
[1746652846984,5.54126256,1804.7,1804.4,7.29845671]
[1746652847226,0.40297257,1804.5,1804.4,7.8127491]
[1746652847528,0.40297257,1804.5,1804.4,10.8127491]
[1746652847822,5.54126256,1804.7,1804.4,10.8127491]
[1746652847995,0.40297257,1804.5,1804.4,5.06497526]
[1746652848195,5.54126256,1804.7,1804.4,5.06497526]
[1746652848405,0.40297257,1804.5,1804.4,5.06497526]
[1746652848726,0.40297257,1804.5,1804.4,5.57908252]
[1746652848911,5.54126256,1804.7,1804.4,5.57908252]
[1746652849225,5.54126256,1804.7,1804.5,1.07201551]
[1746652849525,21.2718688,1804.8,1804.6,0.30852697]
[1746652849820,15.7308065,1804.8,1804.6,0.30852697]
[1746652850022,5.5408065,1804.8,1804.7,0.51410726]
[1746652850725,5.5408065,1804.8,1804.7,1.02837495]
[1746652851954,5.5408065,1804.8,1804.7,0.51410726]
[1746652852748,5.5408065,1804.8,1804.7,1.02837495]
[1746652853565,5.5408065,1804.8,1804.7,0.51426769]
[1746652853962,5.54108716,1804.7,1804.6,0.51410726]
[1746652854951,5.54108716,1804.7,1804.6,1.02786334]
[1746652855271,5.54565495,1804.9,1804.7,0.8135]
[1746652855936,5.54565495,1804.9,1804.8,0.51410726]
[1746652856259,5.54565495,1804.9,1804.8,1.02786334]
[1746652859852,0.005,1804.9,1804.8,1.02786334]
[1746652860728,0.41284575,1804.9,1804.8,1.02786334]
[1746652860932,0.41284575,1804.9,1804.8,1.79693139]
[1746652861321,0.41284575,1804.9,1804.8,2.10518504]
[1746652861646,0.41284575,1804.9,1804.8,1.59142896]
[1746652861851,0.41284575,1804.9,1804.8,1.33548257]
[1746652862054,0.41284575,1804.9,1804.8,0.82137531]
[1746652862252,0.41284575,1804.9,1804.8,1.02610049]
[1746652862664,5.9533189,1804.9,1804.8,1.02610049]
[1746652862847,5.9533189,1804.9,1804.8,19.00159896]
[1746652862848,0.41284575,1804.9,1804.8,19.00159896]
[1746652863167,0.41284575,1804.9,1804.8,21.79405824]
[1746652863373,0.41284575,1804.9,1804.8,21.28084241]
[1746652863575,0.41284575,1804.9,1804.8,21.79353055]
[1746652863783,0.41284575,1804.9,1804.8,21.79352593]
[1746652865985,0.41284575,1804.9,1804.8,7.60566037]
[1746652866188,0.41284575,1804.9,1804.8,16.17736043]
[1746652866564,0.41284575,1804.9,1804.8,22.81681085]
[1746652867590,5.40678443,1805.1,1804.8,22.81681085]
[1746652867744,0.37858908,1805.0,1804.9,0.51268814]
[1746652868176,0.37858908,1805.0,1804.9,0.82029065]
[1746652868359,0.37858908,1805.0,1804.9,3.05968708]
[1746652869257,5.91875528,1805.0,1804.9,3.05968708]
[1746652869457,0.37858908,1805.0,1804.9,3.05968708]
[1746652870076,5.91875528,1805.0,1804.9,1.33216549]
[1746652870253,5.91875528,1805.0,1804.9,1.02456298]
[1746652876193,6.09195528,1805.0,1804.9,1.02456298]
[1746652876364,6.09195528,1805.0,1804.9,0.51187484]
[1746652876790,5.54108716,1804.7,1804.6,1.02456298]
[1746652876961,5.92002916,1804.7,1804.6,1.02456298]
[1746652877692,5.92002916,1804.7,1804.6,0.51187484]
[1746652882774,5.92002916,1804.7,1804.6,1.02456298]
[1746652884806,5.92002916,1804.7,1804.6,0.51187484]
[1746652886082,5.92002916,1804.7,1804.6,1.02456298]
[1746652887180,5.92002916,1804.7,1804.6,0.51187484]
[1746652890386,7.23932402,1804.7,1804.6,0.51187484]
[1746652890786,7.23932402,1804.7,1804.5,0.51268814]
[1746652890787,5.54139421,1804.6,1804.5,1.02456298]
[1746652891005,5.91602971,1804.6,1804.5,1.02456298]
[1746652891216,5.91602971,1804.6,1804.5,0.51187484]
[1746652898909,5.91602971,1804.6,1804.5,1.02544001]
[1746652899519,0.3746355,1804.6,1804.5,1.02544001]
[1746652899823,5.54139421,1804.6,1804.5,1.02544001]
[1746652900027,5.91518235,1804.6,1804.5,1.02544001]
[1746652901636,5.91518235,1804.6,1804.5,1.33300843]
[1746652902741,5.91518235,1804.6,1804.5,1.02757048]
[1746652903239,5.91518235,1804.6,1804.5,1.3351389]
[1746652904006,5.91518235,1804.6,1804.5,1.02757048]
[1746652905341,5.91518235,1804.6,1804.5,1.3351389]
[1746652909553,0.37378814,1804.6,1804.5,1.3351389]
[1746652909925,5.54139421,1804.6,1804.5,1.3351389]
[1746652910133,5.91525296,1804.6,1804.5,1.3351389]
[1746652911348,0.37385875,1804.6,1804.5,2.1536389]
[1746652911716,5.91525296,1804.6,1804.5,1.3351389]
[1746652912052,7.23408697,1804.6,1804.5,1.3351389]
[1746652912548,9.0778506,1804.6,1804.5,1.02757048]
[1746652912753,9.0778506,1804.6,1804.5,0.51356517]
[1746652913416,5.71520842,1804.4,1804.3,1.33727252]
[1746652913623,7.93177153,1804.4,1804.3,1.33727252]
[1746652913833,8.67088293,1804.4,1804.3,1.33727252]
[1746652914252,8.67088293,1804.4,1804.3,1.02838241]
[1746652914435,8.67088293,1804.4,1804.2,3.69814565]
[1746652914436,5.54231557,1804.3,1804.2,3.69814565]
[1746652914640,6.96363542,1804.3,1804.2,3.69814565]
[1746652914847,7.3364349,1804.3,1804.2,3.69814565]
[1746652916745,5.54292999,1804.1,1804.0,1.02833286]
[1746652916948,5.54292999,1804.1,1804.0,0.51356517]
[1746652917261,5.91572947,1804.1,1804.0,0.51356517]
[1746652917461,5.91572947,1804.1,1804.0,1.02784583]
[1746652919024,5.91572947,1804.1,1804.0,0.51428066]
[1746652919368,7.06157802,1804.1,1804.0,0.51428066]
[1746652919536,7.23477802,1804.1,1804.0,0.51428066]
[1746652919726,5.54323725,1804.0,1803.9,1.02784583]
[1746652920228,5.91603673,1804.0,1803.9,1.02784583]
[1746652920435,5.54354454,1803.9,1803.8,1.33673594]
[1746652920635,5.54354454,1803.9,1803.8,1.02784583]
[1746652920834,5.91634402,1803.9,1803.8,1.02784583]
[1746652922352,5.91634402,1803.9,1803.8,0.51356517]
[1746652922752,5.54385186,1803.8,1803.7,4.77283576]
[1746652922924,5.54385186,1803.8,1803.7,4.46394565]
[1746652923130,5.54385186,1803.8,1803.7,4.97822631]
[1746652923551,5.54385186,1803.8,1803.7,1.28008066]
[1746652923552,5.91665134,1803.8,1803.7,1.28008066]
[1746652924260,5.91665134,1803.8,1803.7,0.7658]
[1746652929681,0.37279948,1803.8,1803.7,0.7658]
[1746652929836,0.37279948,1803.8,1803.7,1.2343411]
[1746652930573,0.37279948,1803.8,1803.7,1.74862176]
[1746652930968,11.08685813,1804.0,1803.7,1.74862176]
[1746652931170,0.36806623,1803.8,1803.7,1.74862176]
[1746652931368,5.54355142,1803.9,1803.7,2.26218693]
[1746652931579,0.36806623,1803.8,1803.7,2.57002508]
[1746652931977,5.54309483,1804.1,1803.8,3.8315]
[1746652932292,5.54309483,1804.1,1803.9,0.38315]
[1746652932486,5.54309483,1804.1,1804.0,0.8315]
[1746652935595,5.91116106,1804.1,1804.0,0.8315]
[1746652940699,5.91116106,1804.1,1804.0,1.34465581]
[1746652941299,5.91116106,1804.1,1804.0,0.51315581]
[1746652942005,9.81262832,1804.1,1804.0,1.02672098]
[1746652942164,9.81262832,1804.1,1804.0,0.51356517]
[1746652943071,5.54354454,1803.9,1803.8,1.02795756]
[1746652943272,5.91231744,1803.9,1803.8,1.33579571]
[1746652943874,5.91231744,1803.9,1803.8,1.02795756]
[1746652945003,5.91231744,1803.9,1803.8,1.33671613]
[1746652948219,5.91231744,1803.9,1803.8,1.02795756]
[1746652948718,5.91231744,1803.9,1803.8,1.33671613]
[1746652950324,5.91231744,1803.9,1803.8,1.02795756]
[1746652951022,5.91231744,1803.9,1803.8,1.33671613]
[1746652951893,0.3687729,1803.9,1803.8,2.16311613]
[1746652954203,0.3687729,1803.9,1803.8,2.93384265]
[1746652955001,0.3687729,1803.9,1803.8,2.16311613]
[1746652955811,5.54295249,1804.1,1803.8,2.16311613]
[1746652956130,5.54295249,1804.1,1803.8,1.64872374]
[1746652956296,0.34646908,1804.0,1803.9,0.30875857]
[1746652956622,0.34646908,1804.0,1803.9,0.82232374]
[1746652957527,0.34646908,1804.0,1803.9,1.33611779]
[1746652957825,5.88970633,1804.0,1803.9,1.33611779]
[1746652959226,0.34646908,1804.0,1803.9,1.33611779]
[1746652961439,0.34646908,1804.0,1803.9,1.92219473]
[1746652961635,0.34646908,1804.0,1803.9,1.40840068]
[1746652961841,0.34646908,1804.0,1803.9,0.58607694]
[1746652962643,0.34646908,1804.0,1803.9,1.9223887]
[1746652962807,0.34646908,1804.0,1803.9,1.40848044]
[1746652963139,0.34646908,1804.0,1803.9,0.89446849]
[1746652963438,0.34646908,1804.0,1803.9,0.58607694]
[1746652964041,0.34646908,1804.0,1803.9,7.2327314]
[1746652965139,0.34646908,1804.0,1803.9,8.56908255]
[1746652971552,5.88970633,1804.0,1803.9,8.56908255]
[1746652971851,5.88970633,1804.0,1803.9,7.98300561]
[1746652972060,5.41919483,1804.0,1803.9,7.98300561]
[1746652972226,5.73912654,1804.0,1803.9,7.98300561]
[1746652974155,0.31993171,1804.0,1803.9,7.98300561]
[1746652979436,0.31993171,1804.0,1803.9,4.28475396]
[1746652981581,0.31993171,1804.0,1803.9,11.66553593]
[1746652981776,21.27443528,1804.4,1804.1,0.7662]
[1746652982080,5.54234454,1804.3,1804.2,0.51396997]
[1746652982379,5.54234454,1804.3,1804.2,0.82236998]
[1746652982746,15.73217295,1804.4,1804.2,0.82236998]
[1746652982965,15.73217295,1804.4,1804.3,0.30840001]
[1746652983369,15.73217295,1804.4,1804.3,0.82236998]
[1746652984076,15.73217295,1804.4,1804.3,1.33635115]
[1746652984682,15.73217295,1804.4,1804.3,1.02795114]
[1746652984889,5.54217295,1804.4,1804.3,1.02795114]
[1746652988353,11.08379616,1804.5,1804.3,1.02795114]
[1746652988554,5.54184106,1804.5,1804.3,1.02795114]
[1746652988759,5.54184106,1804.5,1804.4,0.51398117]
[1746652988971,5.54184106,1804.5,1804.4,1.02795114]
[1746652989784,5.54184106,1804.5,1804.4,0.51398117]
[1746652990183,5.54184106,1804.5,1804.4,1.02795114]
[1746652991880,5.54184106,1804.5,1804.4,0.51396997]
[1746652992079,11.08383174,1804.5,1804.3,1.33598958]
[1746652992394,5.54184106,1804.5,1804.3,1.33598958]
[1746652992696,5.54184106,1804.5,1804.4,0.51396997]
[1746652992871,5.54184106,1804.5,1804.4,1.02795114]
[1746652993795,5.54184106,1804.5,1804.4,0.51396997]
[1746652994959,5.54184106,1804.5,1804.4,1.02795114]
[1746652995496,5.86403659,1804.5,1804.4,0.51398117]
[1746652996194,5.86403659,1804.5,1804.4,1.02795114]
[1746652997368,5.86403659,1804.5,1804.4,0.51398117]
[1746652997602,5.54200842,1804.4,1804.3,1.33598958]
[1746652997895,5.54200842,1804.4,1804.3,0.82201961]
[1746652998078,5.86583104,1804.4,1804.3,0.82201961]
[1746652998465,5.86583104,1804.4,1804.3,1.02755021]
[1746652999703,5.86583104,1804.4,1804.3,1.33558865]
[1746653000294,5.86583104,1804.4,1804.3,1.02755021]
[1746653001000,0.32382262,1804.4,1804.3,1.33558865]
[1746653001717,0.32382262,1804.4,1804.3,1.02755021]
[1746653002420,5.86583104,1804.4,1804.3,1.02755021]
[1746653002590,7.17979825,1804.4,1804.3,1.02755021]
[1746653003121,5.54262276,1804.2,1804.1,4.00471844]
[1746653003310,5.86602097,1804.2,1804.1,4.00471844]
[1746653003614,5.86602097,1804.2,1804.1,4.51865017]
[1746653004007,5.86602097,1804.2,1804.1,5.03259061]
[1746653004916,6.03922097,1804.2,1804.1,5.03259061]
[1746653005119,7.19738845,1804.2,1804.1,5.03259061]
[1746653005320,7.19738845,1804.2,1804.1,4.72455217]
[1746653006428,7.19738845,1804.2,1804.1,1.02787217]
[1746653007622,7.19738845,1804.2,1804.1,1.33591061]
[1746653008493,7.19738845,1804.2,1804.1,1.02787217]
[1746653010325,7.19738845,1804.2,1804.1,0.51394044]
[1746653010904,5.54292999,1804.1,1804.0,1.02787217]
[1746653011103,5.86371073,1804.1,1804.0,1.02787217]
[1746653011828,5.86371073,1804.1,1804.0,0.51394044]
[1746653012130,5.54323725,1804.0,1803.9,4.21062044]
[1746653012496,5.86401799,1804.0,1803.9,4.21062044]
[1746653012696,5.86401799,1804.0,1803.9,4.72444183]
[1746653013499,5.86401799,1804.0,1803.9,4.21050139]
[1746653013707,5.86401799,1804.0,1803.9,4.72416776]
[1746653014136,5.86401799,1804.0,1803.9,1.02748776]
[1746653016145,5.86401799,1804.0,1803.9,0.51382139]
[1746653018513,6.03721799,1804.0,1803.9,0.51382139]
[1746653018715,5.54354454,1803.9,1803.8,1.3355262]
[1746653019134,5.86432528,1803.9,1803.8,1.3355262]
[1746653019647,5.86432528,1803.9,1803.8,1.02748776]
[1746653022054,5.86432528,1803.9,1803.8,0.51366637]
[1746653022554,5.86432528,1803.9,1803.8,0.51382139]
[1746653025956,5.86432528,1803.9,1803.8,1.02748776]
[1746653026457,5.86432528,1803.9,1803.8,0.51366637]
[1746653027163,5.86432528,1803.9,1803.8,1.02748776]
[1746653027453,5.86432528,1803.9,1803.8,0.51382139]
[1746653028227,5.86432528,1803.9,1803.8,1.02748776]
[1746653028624,5.86432528,1803.9,1803.8,0.51366637]
[1746653029362,5.86432528,1803.9,1803.8,1.02748776]
[1746653029862,5.54385186,1803.8,1803.7,1.02748776]
[1746653030065,5.54385186,1803.8,1803.7,1.33541732]
[1746653030229,5.86307593,1803.8,1803.7,1.33541732]
[1746653038579,0.31922407,1803.8,1803.7,2.14931732]
[1746653038784,0.31922407,1803.8,1803.7,4.39424372]
[1746653039081,11.08689116,1804.0,1803.7,4.39424372]
[1746653039280,0.31901182,1803.8,1803.7,4.39424372]
[1746653039482,11.08689116,1804.0,1803.7,4.08631416]
[1746653039661,0.31901182,1803.8,1803.7,4.08631416]
[1746653039855,0.31901182,1803.8,1803.7,3.57249277]
[1746653040157,0.31901182,1803.8,1803.7,2.24200904]
[1746653040483,0.31901182,1803.8,1803.7,2.55098961]
[1746653040947,11.08689116,1804.0,1803.7,2.55098961]
[1746653041149,0.31901182,1803.9,1803.7,2.55098961]
[1746653041996,0.31901182,1803.9,1803.8,0.7848]
[1746653042154,5.86255636,1803.9,1803.8,0.7848]
[1746653042489,0.31901182,1803.9,1803.8,0.7848]
[1746653043097,0.31901182,1803.9,1803.8,1.2999697]
[1746653044206,5.86255636,1803.9,1803.8,0.82415027]
[1746653044556,5.86255636,1803.9,1803.8,1.33781664]
[1746653045094,5.86255636,1803.9,1803.8,1.33794634]
[1746653052015,6.03575636,1803.9,1803.8,1.33794634]
[1746653053212,5.86255636,1803.9,1803.8,1.33794634]
[1746653054568,7.02046953,1803.9,1803.8,1.33794634]
[1746653054847,7.19366953,1803.9,1803.8,1.02883607]
[1746653055055,7.19366953,1803.9,1803.8,0.51366637]
[1746653055633,7.19366953,1803.9,1803.7,4.00579027]
[1746653055634,5.54385186,1803.8,1803.7,3.69668]
[1746653055948,5.86187314,1803.8,1803.7,3.69668]
[1746653056155,7.13552623,1803.8,1803.7,3.69668]
[1746653056321,7.13552623,1803.8,1803.7,4.21156393]
[1746653056751,7.13552623,1803.8,1803.7,4.72631441]
[1746653057260,7.30872623,1803.8,1803.7,4.72631441]
[1746653057824,7.30872623,1803.8,1803.7,4.21156393]
[1746653058033,7.30872623,1803.8,1803.7,3.69668]
[1746653058625,7.30872623,1803.8,1803.7,4.21156393]
[1746653059275,7.30872623,1803.8,1803.7,4.72631441]
[1746653060161,7.30872623,1803.8,1803.7,0.51475048]
[1746653060467,5.54415922,1803.7,1803.6,0.51475048]
[1746653060768,5.86069425,1803.7,1803.6,0.51475048]
[1746653061181,5.86069425,1803.7,1803.6,1.02963441]
[1746653062888,0.31653503,1803.7,1803.6,2.33397688]
[1746653063256,0.31653503,1803.7,1803.6,2.13954468]
[1746653063985,5.86069425,1803.7,1803.6,2.13954468]
[1746653065952,5.86069425,1803.7,1803.6,8.78971942]
[1746653066152,0.31653503,1803.7,1803.6,8.78971942]
[1746653068093,5.86069425,1803.7,1803.6,8.78971942]
[1746653069288,0.31653503,1803.7,1803.6,8.78971942]
[1746653072120,0.31653503,1803.7,1803.6,7.98891942]
[1746653072121,5.86069425,1803.7,1803.6,7.98891942]
[1746653076726,5.86069425,1803.7,1803.6,1.33874468]
[1746653083405,7.01846886,1803.7,1803.6,1.33874468]
[1746653083778,7.01846886,1803.7,1803.6,1.02963441]
[1746653085782,7.01846886,1803.7,1803.6,0.51488393]
[1746653086311,5.54446662,1803.6,1803.5,4.00538864]
[1746653086675,5.86128481,1803.6,1803.5,4.00538864]
[1746653086879,5.86128481,1803.6,1803.5,4.72527908]
[1746653087718,5.86128481,1803.6,1803.5,0.51429954]
[1746653088909,5.86128481,1803.6,1803.5,1.02859908]
[1746653089411,5.86128481,1803.6,1803.5,1.02846443]
[1746653093419,5.86128481,1803.6,1803.5,0.51429954]
[1746653093724,5.86128481,1803.6,1803.5,1.02846443]
[1746653094228,5.54477405,1803.5,1803.4,1.02846443]
[1746653094528,5.8573453,1803.5,1803.4,1.02846443]
[1746653095333,0.31257125,1803.5,1803.4,1.02846443]
[1746653099732,0.31257125,1803.5,1803.4,1.33717307]
[1746653100332,0.31257125,1803.5,1803.4,8.93191053]
[1746653100536,0.1732,1804.4,1803.8,5.54376116]
[1746653100537,5.54294298,1804.1,1803.8,5.54376116]
[1746653100710,2.0186497,1804.4,1803.7,6.3154]
[1746653100911,5.54322664,1804.1,1803.9,0.51416489]
[1746653101116,5.71535513,1804.4,1803.9,7.9028635]
[1746653101424,5.54233873,1804.3,1804.0,2.93885942]
[1746653101802,5.54215513,1804.4,1804.0,2.93885942]
[1746653102003,11.08441784,1804.4,1804.1,0.51416489]
[1746653102204,5.54215513,1804.4,1804.2,0.51429954]
[1746653102610,5.54215513,1804.4,1804.2,1.02846443]
[1746653104309,15.73170457,1804.5,1804.3,0.7941]
[1746653107045,5.5414543,1804.6,1804.3,0.7941]
[1746653108276,0.26600615,1804.5,1804.3,0.7941]
[1746653110367,0.26600615,1804.5,1804.3,6.39174496]
[1746653110568,0.26600615,1804.5,1804.3,0.8495174]
[1746653110755,5.54151653,1804.6,1804.3,0.7941]
[1746653111071,5.54151653,1804.6,1804.3,1.30387757]
[1746653111306,0.27146603,1804.5,1804.3,0.7941]
[1746653112063,0.27146603,1804.5,1804.3,0.8495159]
[1746653112373,0.27146603,1804.5,1804.3,1.3036633]
[1746653112772,0.27146603,1804.5,1804.3,1.3590792]
[1746653112943,0.27146603,1804.5,1804.3,6.90130441]
[1746653113138,2.1659,1805.0,1804.4,10.17564355]
[1746653113343,7.70619444,1805.0,1804.7,5.54104152]
[1746653113683,7.70619444,1805.0,1804.7,5.5]
[1746653113885,7.70619444,1805.0,1804.7,11.04108561]
[1746653114071,7.70619444,1805.0,1804.8,1.10410856]
[1746653115294,7.70619444,1805.0,1804.7,5.5]
[1746653115295,7.70619444,1805.0,1804.7,11.04098907]
[1746653115494,0.25238676,1804.9,1804.7,11.04098907]
[1746653116883,0.25238676,1804.9,1804.7,5.5]
[1746653117284,0.25238676,1804.9,1804.7,11.04107165]
[1746653118601,15.72876716,1805.5,1805.1,6.34149269]
[1746653118756,5.96045979,1805.6,1805.2,11.6725771]
[1746653119511,5.53913176,1805.4,1805.2,0.63414927]
[1746653119663,5.53913176,1805.4,1805.3,5.499]
[1746653120562,11.07765914,1805.5,1805.3,5.499]
[1746653122700,11.07765914,1805.5,1805.1,6.34158405]
[1746653122701,5.53893873,1805.4,1805.1,0.8019]
[1746653122993,5.53893873,1805.4,1805.2,5.498]
[1746653124897,5.53908443,1805.4,1805.2,5.498]
[1746653126433,0.21585772,1805.3,1805.2,5.498]
[1746653126735,5.53908443,1805.4,1805.2,5.498]
[1746653126927,0.21585772,1805.3,1805.2,5.498]
[1746653127127,5.53908443,1805.4,1805.2,5.498]
[1746653127327,0.21585772,1805.3,1805.2,5.498]
[1746653127533,5.53908443,1805.4,1805.2,5.498]
[1746653127719,0.21585772,1805.3,1805.2,5.498]
[1746653127920,5.53908443,1805.4,1805.2,5.498]
[1746653128119,0.21585772,1805.3,1805.2,5.498]
[1746653128440,5.53908443,1805.4,1805.2,5.498]
[1746653128643,0.21585772,1805.3,1805.2,5.498]
[1746653129040,5.53908443,1805.4,1805.2,5.498]
[1746653129243,0.21585772,1805.3,1805.2,5.498]
[1746653129543,5.53908443,1805.4,1805.2,5.498]
[1746653129744,0.21585772,1805.3,1805.2,5.498]
[1746653129949,5.53908443,1805.4,1805.2,6.68197085]
[1746653130125,0.21585772,1805.3,1805.2,6.68197085]
[1746653130306,5.53908443,1805.4,1805.2,6.68197085]
[1746653130522,0.21585772,1805.3,1805.2,6.68197085]
[1746653130721,5.53908443,1805.4,1805.2,6.68197085]
[1746653131040,0.21585772,1805.3,1805.2,6.68197085]
[1746653131430,5.53908443,1805.4,1805.2,6.68197085]
[1746653131748,0.21585772,1805.3,1805.2,6.68197085]
[1746653131953,5.53908443,1805.4,1805.2,6.68197085]
[1746653132147,0.21585772,1805.3,1805.2,5.498]
[1746653132312,11.07771114,1805.5,1805.2,5.498]
[1746653132512,0.21585772,1805.4,1805.2,5.498]
[1746653132940,0.21585772,1805.4,1805.2,6.00652312]
[1746653136857,5.75481271,1805.4,1805.2,6.00652312]
[1746653138855,5.46192018,1805.4,1805.2,6.00652312]
[1746653139028,0.21855305,1805.3,1805.2,6.00652312]
[1746653139228,0.21855305,1805.3,1805.2,7.24133192]
[1746653139556,0.20056491,1805.3,1805.2,7.24133192]
[1746653139760,0.20056491,1805.3,1805.2,7.75101453]
[1746653139930,5.46192018,1805.4,1805.2,7.75101453]
[1746653140130,0.20056491,1805.3,1805.2,6.51620573]
[1746653140331,5.46192018,1805.4,1805.2,6.00768261]
[1746653140553,0.20056491,1805.3,1805.2,6.00768261]
[1746653140861,5.46192018,1805.4,1805.2,6.31379579]
[1746653141036,0.20056491,1805.3,1805.2,6.31379579]
[1746653141237,0.20056491,1805.3,1805.2,7.57933186]
[1746653141437,0.20056491,1805.3,1805.2,8.08978372]
[1746653141641,5.46192018,1805.4,1805.2,8.08978372]
[1746653141851,0.20056491,1805.3,1805.2,6.31379579]
[1746653142050,0.20056491,1805.3,1805.2,5.80411318]
[1746653142655,5.53881464,1805.5,1805.2,6.3149852]